bitfinex-derivatives/quotes_BTCF0:USTF0_20250919
["timestamp","ask_amount","ask_price","bid_price","bid_amount"]
[1758282606699,0.34590799,116380.0,116370.0,0.41230132]
[1758282607003,0.43178969,116380.0,116370.0,0.32641222]
[1758282607508,0.1238717,116380.0,116370.0,0.32641222]
[1758282610403,0.43178969,116380.0,116370.0,0.32641222]
[1758282612211,0.43178969,116380.0,116370.0,0.01849423]
[1758282612403,0.43178969,116380.0,116370.0,0.32641222]
[1758282616010,0.1238717,116380.0,116370.0,0.32641222]
[1758282617709,0.12393261,116380.0,116370.0,0.32641222]
[1758282618018,0.1238717,116380.0,116370.0,0.32641222]
[1758282620015,0.9075917,116380.0,116370.0,0.32641222]
[1758282620606,0.9075917,116380.0,116370.0,0.01849423]
[1758282620915,0.9075917,116380.0,116370.0,0.32641222]
[1758282621719,0.1238717,116380.0,116370.0,0.32641222]
[1758282622014,0.9075517,116380.0,116370.0,0.32641222]
[1758282622610,0.1238717,116380.0,116370.0,0.32641222]
[1758282622812,0.9075117,116380.0,116370.0,0.32641222]
[1758282623207,0.90759653,116380.0,116370.0,0.32641222]
[1758282623409,0.90761588,116380.0,116370.0,0.32641222]
[1758282623601,0.90760038,116380.0,116370.0,0.32641222]
[1758282623803,0.90760609,116380.0,116370.0,0.01849423]
[1758282624004,0.90761431,116380.0,116370.0,0.32641222]
[1758282624203,0.90759555,116380.0,116370.0,0.32641222]
[1758282624408,0.9075117,116380.0,116370.0,0.32641222]
[1758282626719,0.9075117,116380.0,116370.0,0.01849423]
[1758282626918,0.9075117,116380.0,116370.0,0.32641222]
[1758282629620,0.9075117,116380.0,116370.0,0.01849423]
[1758282629919,0.9075117,116380.0,116370.0,0.32641222]
[1758282630312,0.9075117,116380.0,116370.0,0.01849423]
[1758282630508,0.9075117,116380.0,116370.0,0.32641222]
[1758282631413,1.46542969,116380.0,116370.0,0.01849423]
[1758282632818,0.68178969,116380.0,116370.0,0.01849423]
[1758282633016,1.46530969,116380.0,116370.0,0.01849423]
[1758282633916,0.68178969,116380.0,116370.0,0.01849423]
[1758282634221,1.46526969,116380.0,116370.0,0.01849423]
[1758282634719,0.68178969,116380.0,116370.0,0.01849423]
[1758282635128,1.46526969,116380.0,116370.0,0.01849423]
[1758282635519,0.68178969,116380.0,116370.0,0.01849423]
[1758282636027,1.46522969,116380.0,116370.0,0.17319057]
[1758282637324,1.46522969,116380.0,116370.0,0.15569634]
[1758282638326,1.46522969,116380.0,116370.0,0.001]
[1758282639326,1.21531595,116380.0,116370.0,0.001]
[1758282639515,1.21530037,116380.0,116370.0,0.001]
[1758282639720,1.21515473,116380.0,116370.0,0.001]
[1758282640123,1.23964254,116380.0,116370.0,0.001]
[1758282640922,0.45620254,116380.0,116370.0,0.001]
[1758282641129,1.23960254,116380.0,116370.0,0.001]
[1758282641329,0.9072717,116380.0,116370.0,0.001]
[1758282641629,1.23960254,116380.0,116370.0,0.001]
[1758282644820,1.23967354,116380.0,116370.0,0.001]
[1758282645021,1.23967776,116380.0,116370.0,0.001]
[1758282645222,1.23968373,116380.0,116370.0,0.001]
[1758282645429,1.23960254,116380.0,116370.0,0.001]
[1758282646834,0.45620254,116380.0,116370.0,0.001]
[1758282647030,1.23952254,116380.0,116370.0,0.001]
[1758282648133,0.45620254,116380.0,116370.0,0.001]
[1758282648331,1.23948254,116380.0,116370.0,0.001]
[1758282648534,1.23944254,116380.0,116370.0,0.001]
[1758282650438,0.9071117,116380.0,116370.0,0.001]
[1758282650640,1.23944254,116380.0,116370.0,0.001]
[1758282657535,1.239531,116380.0,116370.0,0.001]
[1758282657842,1.23944254,116380.0,116370.0,0.001]
[1758282661448,0.45620254,116380.0,116370.0,0.001]
[1758282661648,0.1238717,116380.0,116370.0,0.001]
[1758282661850,1.23924254,116380.0,116370.0,0.001]
[1758282663239,1.2393356,116380.0,116370.0,0.001]
[1758282663440,0.9069117,116380.0,116370.0,0.001]
[1758282663645,1.23920254,116380.0,116370.0,0.001]
[1758282666646,1.23916254,116380.0,116370.0,0.001]
[1758282666846,0.9068317,116380.0,116370.0,0.001]
[1758282667060,1.23916254,116380.0,116370.0,0.001]
[1758282667553,0.45620254,116380.0,116370.0,0.001]
[1758282667759,1.23916254,116380.0,116370.0,0.001]
[1758282668158,0.9068317,116380.0,116370.0,0.001]
[1758282668355,1.23916254,116380.0,116370.0,0.001]
[1758282668560,0.45620254,116380.0,116370.0,0.001]
[1758282668756,1.2392146,116380.0,116370.0,0.001]
[1758282668959,1.23922757,116380.0,116370.0,0.001]
[1758282669262,1.23912254,116380.0,116370.0,0.001]
[1758282669765,0.1238717,116380.0,116370.0,0.001]
[1758282670062,1.23912254,116380.0,116370.0,0.001]
[1758282672473,0.9067917,116380.0,116370.0,0.001]
[1758282677665,1.23912254,116380.0,116370.0,0.001]
[1758282678064,0.9067917,116380.0,116370.0,0.001]
[1758282678264,1.23912254,116380.0,116370.0,0.001]
[1758282679761,1.23923389,116380.0,116370.0,0.001]
[1758282679968,0.9067917,116380.0,116370.0,0.001]
[1758282680278,1.23912254,116380.0,116370.0,0.001]
[1758282681777,0.9067917,116380.0,116370.0,0.001]
[1758282682277,1.23912254,116380.0,116370.0,0.001]
[1758282682478,0.9067917,116380.0,116370.0,0.001]
[1758282682775,1.23912254,116380.0,116370.0,0.001]
[1758282685869,1.23574681,116380.0,116370.0,0.001]
[1758282686070,1.23563889,116380.0,116370.0,0.001]
[1758282686271,1.23573982,116380.0,116370.0,0.001]
[1758282686472,1.23570661,116380.0,116370.0,0.001]
[1758282686665,1.23572648,116380.0,116370.0,0.001]
[1758282686870,1.23563889,116380.0,116370.0,0.001]
[1758282688075,0.90330805,116380.0,116370.0,0.001]
[1758282688274,1.23563889,116380.0,116370.0,0.001]
[1758282688878,0.90330805,116380.0,116370.0,0.001]
[1758282689180,1.23563889,116380.0,116370.0,0.001]
[1758282692982,1.23571286,116380.0,116370.0,0.001]
[1758282693175,1.23574888,116380.0,116370.0,0.001]
[1758282693375,1.23563889,116380.0,116370.0,0.001]
[1758282695180,0.45271889,116380.0,116370.0,0.001]
[1758282695385,1.23523889,116380.0,116370.0,0.001]
[1758282697185,0.90290805,116380.0,116370.0,0.001]
[1758282697385,1.23523889,116380.0,116370.0,0.001]
[1758282698687,1.23530753,116380.0,116370.0,0.001]
[1758282698888,0.0858894,116370.0,116360.0,0.0175618]
[1758282699089,0.45458024,116370.0,116360.0,0.0174618]
[1758282699687,1.23698024,116370.0,116360.0,0.0174618]
[1758282699890,1.23706918,116370.0,116360.0,0.0174618]
[1758282700282,1.21257573,116370.0,116360.0,0.0174618]
[1758282701084,1.21357573,116370.0,116360.0,0.0184618]
[1758282702281,1.21365634,116370.0,116360.0,0.0184618]
[1758282702485,1.21357573,116370.0,116360.0,0.0184618]
[1758282705394,1.21353573,116370.0,116360.0,0.0184618]
[1758282706989,1.21359638,116370.0,116360.0,0.0184618]
[1758282707191,1.21364714,116370.0,116360.0,0.0184618]
[1758282707390,1.21361962,116370.0,116360.0,0.0184618]
[1758282707590,1.21353573,116370.0,116360.0,0.0184618]
[1758282708198,1.21349573,116370.0,116360.0,0.0184618]
[1758282712303,1.21358084,116370.0,116360.0,0.0184618]
[1758282712497,1.21349573,116370.0,116360.0,0.0184618]
[1758282713196,1.21341573,116370.0,116360.0,0.0184618]
[1758282715200,1.21341573,116370.0,116360.0,0.01850777]
[1758282718709,1.21341573,116370.0,116360.0,0.01846259]
[1758282721710,1.21329573,116370.0,116360.0,0.01846259]
[1758282721903,0.43117573,116370.0,116360.0,0.01846259]
[1758282722104,1.21329573,116370.0,116360.0,0.01846259]
[1758282723004,0.9053694,116370.0,116360.0,0.01846259]
[1758282723210,0.43117573,116370.0,116360.0,0.01846259]
[1758282723508,1.21333938,116370.0,116360.0,0.01846259]
[1758282723699,1.21325573,116370.0,116360.0,0.01846259]
[1758282724908,0.43117573,116370.0,116360.0,0.01846259]
[1758282725210,1.21325573,116370.0,116360.0,0.01846259]
[1758282729707,0.9053294,116370.0,116360.0,0.01846259]
[1758282729909,1.21325573,116370.0,116360.0,0.01846259]
[1758282730710,0.9052494,116370.0,116360.0,0.01846259]
[1758282730911,1.21317573,116370.0,116360.0,0.01846259]
[1758282733507,1.21325334,116370.0,116360.0,0.01846259]
[1758282733709,1.21326188,116370.0,116360.0,0.01846259]
[1758282734010,1.21317573,116370.0,116360.0,0.01846259]
[1758282738513,0.43117573,116370.0,116360.0,0.01846259]
[1758282738907,1.21305573,116370.0,116360.0,0.01846259]
[1758282739613,0.9051294,116370.0,116360.0,0.01846259]
[1758282739814,1.21305573,116370.0,116360.0,0.01846259]
[1758282740009,1.21315006,116370.0,116360.0,0.01846259]
[1758282740216,1.21314862,116370.0,116360.0,0.01846259]
[1758282740410,1.21305573,116370.0,116360.0,0.01846259]
[1758282741111,1.21301573,116370.0,116360.0,0.01846259]
[1758282743116,0.43117573,116370.0,116360.0,0.32638892]
[1758282743419,1.21301573,116370.0,116360.0,0.32638892]
[1758282744114,0.4312783,116370.0,116360.0,0.32638892]
[1758282744313,0.9050894,116370.0,116360.0,0.32638892]
[1758282744509,1.21301573,116370.0,116360.0,0.32638892]
[1758282744914,0.9050894,116370.0,116360.0,0.32638892]
[1758282745118,1.21301573,116370.0,116360.0,0.32638892]
[1758282746713,1.21297573,116370.0,116360.0,0.32638892]
[1758282749016,0.03736,116370.0,116360.0,0.66228572]
[1758282749422,0.01498,116370.0,116360.0,0.66228572]
[1758282752220,0.03794,116370.0,116360.0,0.66228572]
[1758282754322,0.01498,116370.0,116360.0,0.66228572]
[1758282755018,0.015091,116370.0,116360.0,0.66228572]
[1758282755220,0.03794,116370.0,116360.0,0.66228572]
[1758282755915,0.03794,116370.0,116360.0,0.35435939]
[1758282756120,0.03794,116370.0,116360.0,0.66228572]
[1758282756719,0.03794,116370.0,116360.0,0.35435939]
[1758282758223,0.03794,116370.0,116360.0,0.35435939]
[1758282759521,0.03794,116370.0,116360.0,0.10435939]
[1758282761734,0.03794,116370.0,116360.0,0.41218152]
[1758282762131,0.03794,116370.0,116360.0,0.10435939]
[1758282765329,0.0380346,116370.0,116360.0,0.10435939]
[1758282765525,0.03802822,116370.0,116360.0,0.10435939]
[1758282765731,0.03794,116370.0,116360.0,0.10435939]
[1758282765931,0.03794,116370.0,116360.0,0.2589252]
[1758282766636,0.01498,116370.0,116360.0,0.2589252]
[1758282768131,0.001,116370.0,116360.0,0.84123299]
[1758282768337,0.001,116370.0,116360.0,1.10498667]
[1758282768529,0.001,116370.0,116360.0,0.95042086]
[1758282769332,0.001,116370.0,116360.0,1.10466386]
[1758282769939,0.001,116370.0,116360.0,1.88610386]
[1758282770126,0.001,116370.0,116360.0,1.73186086]
[1758282771637,0.001,116370.0,116360.0,1.73145882]
[1758282773141,0.001,116370.0,116360.0,1.73153583]
[1758282773331,0.001,116370.0,116360.0,0.95009583]
[1758282773637,0.001,116370.0,116360.0,1.73145583]
[1758282775036,0.001,116370.0,116360.0,1.88611012]
[1758282776641,0.001,116370.0,116360.0,1.88570102]
[1758282777542,0.001,116370.0,116360.0,1.73145802]
[1758282777743,0.001,116370.0,116360.0,1.39915023]
[1758282777943,0.001,116370.0,116360.0,1.93247878]
[1758282778947,0.001,116370.0,116360.0,1.15111878]
[1758282779147,0.01482,116370.0,116360.0,1.93243878]
[1758282782649,0.001,116370.0,116360.0,1.93243878]
[1758282782955,0.001,116370.0,116360.0,1.73141802]
[1758282783950,0.00108809,116370.0,116360.0,1.73141802]
[1758282784146,0.001,116370.0,116360.0,0.95009802]
[1758282784347,0.001,116370.0,116360.0,1.73129802]
[1758282784551,0.01482,116370.0,116360.0,1.73129802]
[1758282786448,0.001,116370.0,116360.0,1.73129802]
[1758282786653,0.02881635,116390.0,116380.0,0.0983319]
[1758282786952,8.99829663,116400.0,116390.0,0.0858745]
[1758282787153,9.02026663,116400.0,116390.0,0.43063229]
[1758282787355,9.02026663,116400.0,116390.0,0.0983245]
[1758282787555,9.02026663,116400.0,116390.0,0.43063229]
[1758282788057,9.02026663,116400.0,116390.0,0.46175728]
[1758282788453,9.03126663,116400.0,116390.0,0.46175728]
[1758282789152,9.0112776,116400.0,116390.0,0.53126103]
[1758282789855,9.0112776,116400.0,116390.0,0.19895324]
[1758282790050,9.01136685,116400.0,116390.0,0.53126103]
[1758282790249,9.0112776,116400.0,116390.0,0.53226103]
[1758282790448,9.0152776,116400.0,116390.0,0.44638653]
[1758282790658,9.1011447,116400.0,116390.0,0.53226103]
[1758282790859,9.1011447,116400.0,116390.0,0.19995324]
[1758282791060,9.1011447,116400.0,116390.0,0.11407874]
[1758282791654,9.10123105,116400.0,116390.0,0.11407874]
[1758282791856,9.68351881,116400.0,116390.0,0.11407874]
[1758282792054,9.68351881,116400.0,116390.0,0.07050375]
[1758282792249,9.68345249,116400.0,116390.0,0.07050375]
[1758282792655,9.68352137,116400.0,116390.0,0.07050375]
[1758282792849,9.68352347,116400.0,116390.0,0.07050375]
[1758282793055,10.46453249,116400.0,116390.0,0.07050375]
[1758282793255,9.68345249,116400.0,116390.0,0.08295375]
[1758282793454,10.46453249,116400.0,116390.0,0.08295375]
[1758282794061,10.46453249,116400.0,116390.0,0.11328509]
[1758282794260,9.68345249,116400.0,116390.0,0.11328509]
[1758282794461,10.1322247,116400.0,116390.0,0.11328509]
[1758282797462,10.46453249,116400.0,116390.0,0.11328509]
[1758282804972,10.1322247,116400.0,116390.0,0.11328509]
[1758282805172,10.46453249,116400.0,116390.0,0.11328509]
[1758282806574,9.3511447,116400.0,116390.0,0.11328509]
[1758282806875,10.1321447,116400.0,116390.0,0.44559288]
[1758282807074,10.13222775,116400.0,116390.0,0.11328509]
[1758282807270,10.1321447,116400.0,116390.0,0.11328509]
[1758282807780,9.0152776,116400.0,116390.0,0.35364266]
[1758282807981,9.79636455,116400.0,116390.0,0.68595045]
[1758282808281,9.7962776,116400.0,116390.0,0.68595045]
[1758282808480,9.0152776,116400.0,116390.0,0.68595045]
[1758282808681,9.7962376,116400.0,116390.0,0.68595045]
[1758282810184,9.0152776,116400.0,116390.0,0.68595045]
[1758282810683,9.7962376,116400.0,116390.0,0.68595045]
[1758282813289,9.0152776,116400.0,116390.0,0.68595045]
[1758282813481,9.7962376,116400.0,116390.0,0.53146738]
[1758282814581,9.0152776,116400.0,116390.0,0.53146738]
[1758282814779,9.7961976,116400.0,116390.0,0.53146738]
[1758282815384,9.0152776,116400.0,116390.0,0.53146738]
[1758282815585,9.7961976,116400.0,116390.0,0.53146738]
[1758282815786,9.0152776,116400.0,116390.0,0.53146738]
[1758282815987,9.7961976,116400.0,116390.0,0.53146738]
[1758282820591,9.0152776,116400.0,116390.0,0.53146738]
[1758282820786,9.7961576,116400.0,116390.0,0.53146738]
[1758282821889,9.7961576,116400.0,116390.0,0.53127822]
[1758282822192,9.7961576,116400.0,116390.0,0.50680678]
[1758282823384,9.01536305,116400.0,116390.0,0.75680678]
[1758282823586,9.7961576,116400.0,116390.0,0.75680678]
[1758282823785,9.7961576,116400.0,116390.0,0.91128985]
[1758282824285,9.0152776,116400.0,116390.0,0.91128985]
[1758282824485,8.9799676,116400.0,116390.0,0.91906985]
[1758282824686,8.9799676,116400.0,116390.0,1.09102985]
[1758282825285,8.9799676,116400.0,116390.0,1.1856294]
[1758282827795,8.98005217,116400.0,116390.0,1.1856294]
[1758282827999,8.9799676,116400.0,116390.0,1.9664694]
[1758282828303,8.9799676,116400.0,116390.0,1.1856294]
[1758282828487,8.9799676,116400.0,116390.0,1.9664294]
[1758282828794,8.9799676,116400.0,116390.0,1.81194633]
[1758282830698,8.9799676,116400.0,116390.0,1.03114633]
[1758282831001,8.9799676,116400.0,116390.0,1.81194633]
[1758282831498,8.9799676,116400.0,116390.0,1.96633046]
[1758282832803,8.9799676,116400.0,116390.0,1.983878]
[1758282833006,8.9799676,116400.0,116390.0,1.82949387]
[1758282834693,8.98003129,116400.0,116390.0,1.82949387]
[1758282834888,8.98006599,116400.0,116390.0,1.9838838]
[1758282835095,8.98003716,116400.0,116390.0,1.9838838]
[1758282835293,8.9799676,116400.0,116390.0,1.9838838]
[1758282836299,8.9799676,116400.0,116390.0,1.98351274]
[1758282836501,8.9799676,116400.0,116390.0,1.98347274]
[1758282836897,8.60419045,116400.0,116390.0,2.29111993]
[1758282837098,8.38815515,116400.0,116390.0,1.89738708]
[1758282837303,8.38815515,116400.0,116390.0,0.87636281]
[1758282837802,8.38815515,116400.0,116390.0,1.65708281]
[1758282838800,8.38815515,116400.0,116390.0,0.87636281]
[1758282839102,8.38815515,116400.0,116390.0,1.65708281]
[1758282840501,8.38815515,116400.0,116390.0,1.96473]
[1758282840905,8.36295164,116400.0,116390.0,1.96473]
[1758282841500,8.36295164,116400.0,116390.0,1.18401]
[1758282841700,8.36295164,116400.0,116390.0,0.56871562]
[1758282841901,8.36295164,116400.0,116390.0,1.18401]
[1758282842100,8.36295164,116400.0,116390.0,1.97009]
[1758282842717,8.36295164,116400.0,116390.0,1.18401]
[1758282842906,8.36295164,116400.0,116390.0,1.97001]
[1758282843608,8.36295164,116400.0,116390.0,1.18401]
[1758282843904,8.36295164,116400.0,116390.0,1.97001]
[1758282844608,8.36295164,116400.0,116390.0,2.12439993]
[1758282845307,8.36295164,116400.0,116390.0,1.33839993]
[1758282845510,8.36295164,116400.0,116390.0,2.12415993]
[1758282845710,8.36295164,116400.0,116390.0,1.33839993]
[1758282845904,8.36295164,116400.0,116390.0,2.12411993]
[1758282846104,8.39861164,116400.0,116390.0,1.55865274]
[1758282847108,8.22675164,116400.0,116390.0,1.55865274]
[1758282847608,8.19109164,116400.0,116390.0,1.86617993]
[1758282849411,8.19109164,116400.0,116390.0,1.71179]
[1758282849807,8.18823828,116400.0,116390.0,1.71179]
[1758282850512,8.16763184,116400.0,116390.0,1.71163]
[1758282851010,8.16763184,116400.0,116390.0,1.86601993]
[1758282851709,7.99577184,116400.0,116390.0,1.95193427]
[1758282852009,7.99577184,116400.0,116390.0,1.79754434]
[1758282852208,7.99577184,116400.0,116390.0,1.01214434]
[1758282852406,7.99577184,116400.0,116390.0,1.79758434]
[1758282853413,7.99577184,116400.0,116390.0,1.95197427]
[1758282853710,7.99577184,116400.0,116390.0,1.16653427]
[1758282853911,7.99577184,116400.0,116390.0,1.95197427]
[1758282855814,7.99577184,116400.0,116390.0,1.79758434]
[1758282857617,7.99577184,116400.0,116390.0,1.9986051]
[1758282858608,7.99577184,116400.0,116390.0,3.4986051]
[1758282861416,7.99577184,116400.0,116390.0,3.29758434]
[1758282861616,7.82392184,116400.0,116390.0,3.29758434]
[1758282862020,7.80292184,116400.0,116390.0,3.29758434]
[1758282863522,7.78602184,116400.0,116390.0,3.29758434]
[1758282863826,7.78202184,116400.0,116390.0,3.29758434]
[1758282866718,7.78202184,116400.0,116390.0,3.49829805]
[1758282867925,7.78202184,116400.0,116390.0,3.29758434]
[1758282868923,7.77572184,116400.0,116390.0,3.29758434]
[1758282869128,7.77572184,116400.0,116390.0,3.54499451]
[1758282870419,7.77572184,116400.0,116390.0,3.54331451]
[1758282871017,7.77572184,116400.0,116390.0,2.92802013]
[1758282871218,7.77572184,116400.0,116390.0,3.54315451]
[1758282871923,7.60387184,116400.0,116390.0,2.75955451]
[1758282872116,7.60387184,116400.0,116390.0,3.54315451]
[1758282872314,7.60387184,116400.0,116390.0,2.75955451]
[1758282872520,7.61786184,116400.0,116390.0,2.14426013]
[1758282872716,7.61786184,116400.0,116390.0,2.92826013]
[1758282872917,7.61786184,116400.0,116390.0,3.23590732]
[1758282873222,7.61786184,116400.0,116390.0,2.68188996]
[1758282873422,7.61786184,116400.0,116390.0,2.98953715]
[1758282873622,7.61786184,116400.0,116390.0,2.97236067]
[1758282873829,7.61786184,116400.0,116390.0,2.98964206]
[1758282877132,7.61786184,116400.0,116390.0,2.98980206]
[1758282877430,7.61786184,116400.0,116390.0,3.29765556]
[1758282878332,7.60387184,116400.0,116390.0,3.29765556]
[1758282880929,7.60387184,116400.0,116390.0,3.49857317]
[1758282881827,7.43202184,116400.0,116390.0,3.49838207]
[1758282882028,7.43202184,116400.0,116390.0,3.2152947]
[1758282882227,7.43202184,116400.0,116390.0,3.01437709]
[1758282887943,7.43202184,116400.0,116390.0,3.346393]
[1758282891245,7.34148642,116400.0,116390.0,3.50092887]
[1758282891835,7.14873642,116400.0,116390.0,3.50092887]
[1758282894949,7.14243642,116400.0,116390.0,3.50092887]
[1758282900051,7.14243642,116400.0,116390.0,3.346393]
[1758282900952,7.14243642,116400.0,116390.0,2.561193]
[1758282901357,7.14243642,116400.0,116390.0,3.01393709]
[1758282901754,6.98365642,116400.0,116390.0,2.22917709]
[1758282902157,6.98365642,116400.0,116390.0,3.01389709]
[1758282905763,6.98365642,116400.0,116390.0,3.01400583]
[1758282909368,6.98365642,116400.0,116390.0,3.01348141]
[1758282911974,6.81179642,116400.0,116390.0,3.01348141]
[1758282912474,6.81179642,116400.0,116390.0,2.22876141]
[1758282912676,6.81179642,116400.0,116390.0,3.01280141]
[1758282916169,6.81179642,116400.0,116390.0,3.16733472]
[1758282916479,6.81179642,116400.0,116390.0,2.38329472]
[1758282916776,6.81179642,116400.0,116390.0,3.16717472]
[1758282920177,6.81179642,116400.0,116390.0,3.01264141]
[1758282921873,6.63993642,116400.0,116390.0,3.01264141]
[1758282922374,6.63993642,116400.0,116390.0,3.16718423]
[1758282922781,6.63993642,116400.0,116390.0,2.38330423]
[1758282923079,6.63993642,116400.0,116390.0,3.16722423]
[1758282923374,6.63993642,116400.0,116390.0,2.38330423]
[1758282923584,6.63993642,116400.0,116390.0,3.16730423]
[1758282926276,6.63993642,116400.0,116390.0,3.01276141]
[1758282927883,6.63993642,116400.0,116390.0,2.22876141]
[1758282928084,6.63993642,116400.0,116390.0,3.01264141]
[1758282928687,6.63993642,116400.0,116390.0,3.16720215]
[1758282931988,6.46807642,116400.0,116390.0,3.16720215]
[1758282934683,6.46807642,116400.0,116390.0,2.29740781]
[1758282934893,6.71807642,116400.0,116390.0,3.08048691]
[1758282935378,6.71807642,116400.0,116390.0,2.59391026]
[1758282935578,6.71807642,116400.0,116390.0,2.92592617]
[1758282935880,6.71807642,116400.0,116390.0,2.14284617]
[1758282936081,6.71807642,116400.0,116390.0,2.92596617]
[1758282936792,6.71807642,116400.0,116390.0,3.08052691]
[1758282937585,6.71807642,116400.0,116390.0,2.92596617]
[1758282938173,6.71807642,116400.0,116390.0,3.08049931]
[1758282938482,6.71807642,116400.0,116390.0,2.29737931]
[1758282938688,6.71807642,116400.0,116390.0,3.08041931]
[1758282939388,6.46807642,116400.0,116390.0,3.08041931]
[1758282941986,6.29621642,116400.0,116390.0,3.08041931]
[1758282943790,6.29621642,116400.0,116390.0,3.08044653]
[1758282944190,6.29621642,116400.0,116390.0,3.05598072]
[1758282944693,6.29621642,116400.0,116390.0,2.97010712]
[1758282944893,6.29621642,116400.0,116390.0,3.05598072]
[1758282949400,6.29621642,116400.0,116390.0,2.90144758]
[1758282949901,6.29621642,116400.0,116390.0,2.11840758]
[1758282950094,6.29621642,116400.0,116390.0,3.05524768]
[1758282950801,6.29621642,116400.0,116390.0,2.27292768]
[1758282951002,6.29621642,116400.0,116390.0,3.05520768]
[1758282951702,6.29621642,116400.0,116390.0,2.90068758]
[1758282952002,6.12435642,116400.0,116390.0,3.05521171]
[1758282952704,6.12435642,116400.0,116390.0,2.90068758]
[1758282954806,6.12435642,116400.0,116390.0,2.11840758]
[1758282955104,6.12435642,116400.0,116390.0,2.90044758]
[1758282956303,6.12435642,116400.0,116390.0,2.11840758]
[1758282956505,6.12435642,116400.0,116390.0,2.90028758]
[1758282957900,6.12435642,116400.0,116390.0,2.11840758]
[1758282958204,6.12435642,116400.0,116390.0,2.90040758]
[1758282959105,6.12435642,116400.0,116390.0,2.11840758]
[1758282959403,6.12435642,116400.0,116390.0,2.90032758]
[1758282959804,6.12435642,116400.0,116390.0,3.05485171]
[1758282960107,6.12435642,116400.0,116390.0,2.27293171]
[1758282960306,5.95249642,116400.0,116390.0,3.05477171]
[1758282960507,5.78063642,116400.0,116390.0,3.05477171]
[1758282960703,5.78063642,116400.0,116390.0,2.90024758]
[1758282960902,5.60877642,116400.0,116390.0,2.90024758]
[1758282962308,5.60877642,116400.0,116390.0,2.11840758]
[1758282962500,5.60877642,116400.0,116390.0,2.90016758]
[1758282963304,5.60877642,116400.0,116390.0,2.11840758]
[1758282963504,5.60877642,116400.0,116390.0,2.90016758]
[1758282964812,5.60877642,116400.0,116390.0,3.05469171]
[1758282967209,5.60877642,116400.0,116390.0,2.90016758]
[1758282969119,5.60877642,116400.0,116390.0,3.10105046]
[1758282970413,5.60877642,116400.0,116390.0,2.90016758]
[1758282971419,5.43691642,116400.0,116390.0,2.90016758]
[1758282971614,5.43691642,116400.0,116390.0,3.05475313]
[1758282972916,5.43691642,116400.0,116390.0,2.27299313]
[1758282973121,5.43691642,116400.0,116390.0,3.05471313]
[1758282973514,5.43691642,116400.0,116390.0,2.27299313]
[1758282973721,5.26505642,116400.0,116390.0,3.05471313]
[1758282973916,5.26505642,116400.0,116390.0,2.90012758]
[1758282974824,5.26505642,116400.0,116390.0,2.27299675]
[1758282975025,5.09318642,116400.0,116390.0,3.05471675]
[1758282975617,5.09318642,116400.0,116390.0,2.90012758]
[1758282980523,5.09318642,116400.0,116390.0,3.05471675]
[1758282981319,5.09318642,116400.0,116390.0,2.90012758]
[1758282981529,5.09318642,116400.0,116390.0,2.03253398]
[1758282981721,4.92123714,116400.0,116390.0,2.96005632]
[1758282982026,4.74936714,116400.0,116390.0,2.09246272]
[1758282982226,4.74936714,116400.0,116390.0,2.87418272]
[1758282982627,4.74936714,116400.0,116390.0,2.41207711]
[1758282982821,4.74936714,116400.0,116390.0,2.71965443]
[1758282983024,4.74936714,116400.0,116390.0,2.87907443]
[1758282983221,4.74936714,116400.0,116390.0,2.96494803]
[1758282983421,4.74936714,116400.0,116390.0,3.11947632]
[1758282984924,4.74936714,116400.0,116390.0,2.7260254]
[1758282985125,5.05694446,116400.0,116390.0,3.03360272]
[1758282985431,5.05694446,116400.0,116390.0,3.11947632]
[1758282985830,5.05694446,116400.0,116390.0,2.96494803]
[1758282986029,5.05694446,116400.0,116390.0,3.16583091]
[1758282986424,4.74936714,116400.0,116390.0,3.16583091]
[1758282987918,4.74947821,116400.0,116390.0,3.32029083]
[1758282988228,4.74936714,116400.0,116390.0,3.32029083]
[1758282988530,4.74936714,116400.0,116390.0,3.11940795]
[1758282989327,5.05694446,116400.0,116390.0,3.11940795]
[1758282989630,4.74936714,116400.0,116390.0,3.11940795]
[1758282990528,4.74936714,116400.0,116390.0,2.81183063]
[1758282990721,4.74936714,116400.0,116390.0,3.11940795]
[1758282992231,4.74936714,116400.0,116390.0,3.03353435]
[1758282992624,4.74947386,116400.0,116390.0,3.03353435]
[1758282992829,4.74936714,116400.0,116390.0,3.03353435]
[1758282993721,4.74936714,116400.0,116390.0,2.87907443]
[1758282994825,4.74943582,116400.0,116390.0,2.87907443]
[1758282995027,4.74936714,116400.0,116390.0,2.87907443]
[1758282995227,4.74936714,116400.0,116390.0,2.09735443]
[1758282995434,5.05694446,116400.0,116390.0,2.87907443]
[1758282996133,4.74936714,116400.0,116390.0,2.87907443]
[1758282996433,4.74936714,116400.0,116390.0,3.0335177]
[1758282997340,4.74936714,116400.0,116390.0,2.87907443]
[1758282997632,4.74936714,116400.0,116390.0,2.2518019]
[1758282997832,4.74936714,116400.0,116390.0,3.0335219]
[1758282998034,4.74936714,116400.0,116390.0,2.2518019]
[1758282998232,4.74936714,116400.0,116390.0,3.0335219]
[1758282999235,4.74936714,116400.0,116390.0,2.2518019]
[1758282999421,4.74936714,116400.0,116390.0,3.0335219]
[1758282999826,4.74936714,116400.0,116390.0,2.87907443]
[1758283000231,5.05694446,116400.0,116390.0,2.87907443]
[1758283000436,5.05694446,116400.0,116390.0,2.09735443]
[1758283000631,5.05694446,116400.0,116390.0,2.87907443]
[1758283001532,4.74936714,116400.0,116390.0,2.87907443]
[1758283003721,4.74936714,116400.0,116390.0,2.57149711]
[1758283003927,4.74936714,116400.0,116390.0,2.87915317]
[1758283004237,4.74936714,116400.0,116390.0,2.90362599]
[1758283004831,4.83523334,116400.0,116390.0,2.90362599]
[1758283006034,4.83523334,116400.0,116390.0,2.12190599]
[1758283006229,4.83523334,116400.0,116390.0,2.90358599]
[1758283006633,4.83523334,116400.0,116390.0,3.10446887]
[1758283007034,4.83531476,116400.0,116390.0,3.10446887]
[1758283007234,4.83531572,116400.0,116390.0,3.10446887]
[1758283007433,4.83523334,116400.0,116390.0,3.10446887]
[1758283010335,4.83523334,116400.0,116390.0,2.90358599]
[1758283014547,4.83523334,116400.0,116390.0,1.78977711]
[1758283014748,4.83523334,116400.0,116390.0,2.90358599]
[1758283017445,4.83523334,116400.0,116390.0,3.10446887]
[1758283017846,4.83529597,116400.0,116390.0,3.10446887]
[1758283018041,4.83523334,116400.0,116390.0,3.10446887]
[1758283018243,4.83531806,116400.0,116390.0,3.10446887]
[1758283018444,4.83530793,116400.0,116390.0,3.10446887]
[1758283018640,4.83531114,116400.0,116390.0,2.77233999]
[1758283018841,4.83523334,116400.0,116390.0,3.10446887]
[1758283019937,4.83523334,116400.0,116390.0,2.90358599]
[1758283022144,4.83523334,116400.0,116390.0,3.05817221]
[1758283023551,4.74936714,116400.0,116390.0,3.05817221]